fUST/lending_fUST_20241110
["ID","MTS","AMOUNT","RATE_DAILY","PERIOD"]
[341738818,1731168643278,-503.50876755,0.00031526,2]
[341738819,1731168643288,-500.0,0.00031526,2]
[341738820,1731168643297,-500.0,0.00031526,2]
[341738821,1731168643306,-500.0,0.00031526,2]
[341738822,1731168643316,-500.0,0.00031526,2]
[341738823,1731168643325,-500.0,0.00031526,2]
[341738824,1731168643334,-508.89288883,0.00031526,2]
[341738825,1731168643343,-500.0,0.00031526,2]
[341738826,1731168643352,-500.0,0.00031526,2]
[341738827,1731168643452,-500.0,0.00031526,2]
[341738828,1731168643462,-500.0,0.00031526,2]
[341738829,1731168643471,-500.0,0.00031526,2]
[341738830,1731168643480,-500.0,0.00031526,2]
[341738831,1731168643490,-500.0,0.00031526,2]
[341738832,1731168643499,-500.0,0.00031526,2]
[341738833,1731168643508,-500.0,0.00031526,2]
[341738834,1731168643516,-500.0,0.00031526,2]
[341738835,1731168643526,-500.0,0.00031526,2]
[341738836,1731168643535,-500.0,0.00031526,2]
[341738837,1731168643544,-500.0,0.00031526,2]
[341738838,1731168643553,-500.0,0.00031526,2]
[341738839,1731168643562,-500.0,0.00031526,2]
[341738840,1731168643572,-500.0,0.00031526,2]
[341738841,1731168643581,-500.0,0.00031526,2]
[341738842,1731168643590,-500.0,0.00031526,2]
[341738843,1731168643599,-500.0,0.00031526,2]
[341738844,1731168643608,-500.0,0.00031526,2]
[341738845,1731168643618,-500.0,0.00031526,2]
[341738846,1731168643628,-500.0,0.00031526,2]
[341738847,1731168643637,-500.0,0.00031526,2]
[341738848,1731168643647,-500.0,0.00031526,2]
[341738849,1731168643657,-500.0,0.00031526,2]
[341738850,1731168643666,-500.0,0.00031526,2]
[341738851,1731168643676,-500.0,0.00031526,2]
[341738852,1731168643685,-500.0,0.00031526,2]
[341738853,1731168643694,-500.0,0.00031526,2]
[341738854,1731168643704,-500.0,0.00031526,2]
[341738855,1731168643714,-500.0,0.00031526,2]
[341738856,1731168643724,-547.80297096,0.00031526,2]
[341738857,1731168643734,-500.0,0.00031526,2]
[341738858,1731168643743,-166.20039571,0.00031526,2]
[341738859,1731168643753,-500.0,0.00031526,2]
[341738860,1731168643762,-500.0,0.00031526,2]
[341738861,1731168643772,-503.10449362,0.00031526,2]
[341738862,1731168643781,-500.0,0.00031526,2]
[341738863,1731168643791,-500.0,0.00031526,2]
[341738864,1731168643800,-500.0,0.00031526,2]
[341738865,1731168643809,-500.0,0.00031526,2]
[341738866,1731168643819,-500.0,0.00031526,2]
[341738867,1731168643828,-1573.25,0.00031526,2]
[341738868,1731168643837,-500.0,0.00031526,2]
[341738869,1731168643847,-500.0,0.00031526,2]
[341738870,1731168643856,-500.0,0.00031526,2]
[341738871,1731168643866,-2336.0,0.00031526,2]
[341738872,1731168643875,-500.0,0.00031526,2]
[341738873,1731168643885,-500.0,0.00031526,2]
[341738874,1731168643894,-500.0,0.00031526,2]
[341738875,1731168643903,-500.0,0.00031526,2]
[341738876,1731168643912,-500.0,0.00031526,2]
[341738877,1731168643921,-500.0,0.00031526,2]
[341738878,1731168643931,-500.0,0.00031526,2]
[341738879,1731168643940,-500.0,0.00031526,2]
[341738880,1731168643949,-500.0,0.00031526,2]
[341738881,1731168643959,-538.62478736,0.00031526,2]
[341738882,1731168643968,-502.48861596,0.00031526,2]
[341738883,1731168643977,-501.41449765,0.00031526,2]
[341738884,1731168643986,-528.63295631,0.00031526,2]
[341738885,1731168643996,-500.0,0.00031526,2]
[341738886,1731168644006,-500.0,0.00031526,2]
[341738887,1731168644017,-464.28120767,0.00031526,2]
[341738888,1731168644028,-500.0,0.00031526,2]
[341738889,1731168644038,-501.72928131,0.00031526,2]
[341738890,1731168644049,-500.0,0.00031526,2]
[341738891,1731168644058,-500.0,0.00031526,2]
[341738892,1731168644069,-500.0,0.00031526,2]
[341738893,1731168644079,-500.0,0.00031526,2]
[341738894,1731168644088,-500.0,0.00031526,2]
[341738895,1731168644099,-500.0,0.00031526,2]
[341738896,1731168644109,-500.0,0.00031526,2]
[341738897,1731168644118,-500.0,0.00031526,2]
[341738898,1731168644130,-500.0,0.00031526,2]
[341738899,1731168644141,-180.276,0.00031527,29]
[341738900,1731168644150,-242.59555001,0.00031527,2]
[341738901,1731168644161,-17662.02600001,0.00031527,21]
[341738902,1731168644171,-1573.25,0.00031534,2]
[341738903,1731168644180,-500.0,0.00031535,2]
[341738904,1731168644190,-530.46,0.00031535,2]
[341738905,1731168644199,-500.0,0.00031535,2]
[341738906,1731168644210,-500.0,0.00031535,2]
[341738907,1731168644220,-500.0,0.00031535,2]
[341738908,1731168644230,-1573.25,0.00031535,2]
[341738909,1731168644240,-500.0,0.00031535,2]
[341738910,1731168644249,-500.0,0.00031535,2]
[341738911,1731168644259,-1000.0,0.00031542,5]
[341738912,1731168644269,-1986.08426424,0.0003155,2]
[341738913,1731168644279,-440.94353084,0.0003155,2]
[341738914,1731168644288,-1573.25,0.00031578,2]
[341738915,1731168644298,-4567.07,0.00031578,120]
[341738916,1731168644308,-1573.25,0.00031579,2]
[341738917,1731168644318,-1573.25,0.00031579,2]
[341738918,1731168644327,-37872.96088045,0.0003158,5]
[341738919,1731168644337,-1573.25,0.00031599,2]
[341738920,1731168644348,-150.112233,0.000316,13]
[341738921,1731168644358,-150.112233,0.000316,14]
[341738922,1731168644367,-150.112233,0.000316,13]
[341738923,1731168644378,-150.11224,0.000316,19]
[341738924,1731168644387,-379.8,0.000316,31]
[341738925,1731168644397,-379.8,0.000316,31]
[341738926,1731168644406,-379.8,0.000316,31]
[341738927,1731168644416,-379.8,0.000316,31]
[341738928,1731168644425,-379.8,0.000316,31]
[341738929,1731168644435,-379.8,0.000316,31]
[341738930,1731168644444,-379.8,0.000316,31]
[341738931,1731168644454,-379.8,0.000316,31]
[341738932,1731168644463,-379.8,0.000316,31]
[341738933,1731168644472,-379.8,0.000316,31]
[341738934,1731168644482,-150.112233,0.000316,18]
[341738935,1731168644491,-150.112233,0.000316,20]
[341738936,1731168644500,-150.112233,0.000316,16]
[341738937,1731168644509,-150.112233,0.000316,20]
[341738938,1731168644518,-150.112233,0.000316,16]
[341738939,1731168644528,-500.0,0.000316,36]
[341738940,1731168644537,-6100.93336616,0.000316,3]
[341738941,1731168644546,-151.0,0.00031616,120]
[341738942,1731168644556,-500.0,0.00031626,120]
[341738943,1731168644565,-152.675519,0.00031627,7]
[341738944,1731168644575,-1573.25,0.00031629,2]
[341738945,1731168644584,-306.71095064,0.0003163,2]
[341738946,1731168644593,-1573.25,0.0003163,2]
[341738947,1731168644603,-1573.25,0.0003163,2]
[341738948,1731168644612,-1573.25,0.0003163,2]
[341738949,1731168644622,-1573.25,0.0003163,2]
[341738950,1731168644633,-1573.25,0.0003163,2]
[341738951,1731168644643,-1573.25,0.0003163,2]
[341738952,1731168644652,-1573.25,0.0003163,2]
[341738953,1731168644661,-1573.25,0.0003163,2]
[341738954,1731168644671,-1573.25,0.0003163,2]
[341738955,1731168644680,-1573.25,0.0003163,2]
[341738956,1731168644689,-1573.25,0.0003163,2]
[341738957,1731168644698,-1573.40089572,0.0003163,2]
[341738958,1731168644707,-600.0,0.0003163,2]
[341738959,1731168644716,-151.0,0.00031631,7]
[341738960,1731168644726,-151.0,0.00031631,7]
[341738961,1731168644735,-239.91711,0.00031631,7]
[341738962,1731168644745,-151.0,0.00031631,7]
[341738963,1731168644754,-626.689014,0.00031631,7]
[341738964,1731168644764,-626.689014,0.00031631,7]
[341738965,1731168644774,-151.0,0.00031631,7]
[341738966,1731168644783,-179.58127992,0.00031635,2]
[341738967,1731168644792,-151.0,0.00031636,7]
[341738968,1731168644802,-2545.08520786,0.00031636,4]
[341738969,1731168644811,-1373.48180684,0.0003165,2]
[341738970,1731168644820,-688.77558036,0.0003165,2]
[341738971,1731168644830,-151.0,0.0003165,7]
[341738972,1731168644839,-151.0,0.0003165,7]
[341738973,1731168644849,-151.0,0.0003165,7]
[341738974,1731168644858,-542.113231,0.0003165,7]
[341738975,1731168644869,-542.113231,0.0003165,7]
[341738976,1731168644879,-542.113231,0.0003165,7]
[341738977,1731168644889,-542.113231,0.0003165,7]
[341738978,1731168644899,-151.0,0.0003165,7]
[341738979,1731168644909,-151.0,0.0003165,7]
[341738980,1731168644918,-2910589.07009746,0.0003165,10]
[341738981,1731168645004,-997.64360154,0.0003165,10]
[341738982,1731168645016,-1513.8,0.0003165,10]
[341738983,1731168645028,-18840.66185331,0.0003165,10]
[341738990,1731168647142,-500.0,0.00031526,2]
[341738991,1731168647152,-500.0,0.00031526,2]
[341738992,1731168647161,-3290.77,0.0003157,10]
[341738993,1731168647171,-351908.77717435,0.0003165,10]
[341739004,1731169136136,175.980257,0.00013973,2]
[341739007,1731169148676,1800.0,0.0002,2]
[341739010,1731169394870,500.0,2.121e-05,2]
[341739017,1731169705599,694.44444444,0.00020844,2]
[341739160,1731169834046,-694.44444444,0.00026863,2]
[341739162,1731169834056,-150.0,0.00027666,2]
[341739164,1731169834068,-157.59030975,0.00028,120]
[341739166,1731169834078,-14245.96524581,0.00028311,2]
[341739169,1731169834090,-761.25,0.00028311,2]
[341739171,1731169834104,-90.03393179,0.00028311,2]
[341739173,1731169834113,-259.01256877,0.00028499,2]
[341739217,1731169838501,-40.98743123,0.00028499,2]
[341739218,1731169838511,-300.0,0.00028499,2]
[341739219,1731169838521,-814.47,0.000285,2]
[341739220,1731169838532,-176.684135,0.000293,2]
[341739221,1731169838542,-151.0,0.0003,120]
[341739222,1731169838552,-1141.397,0.0003,7]
[341739223,1731169838561,-1000.000001,0.0003,2]
[341739224,1731169838572,-210.0,0.0003,120]
[341739225,1731169838586,-150.25186792,0.00030036,2]
[341739226,1731169838596,-154.31976095,0.00030036,2]
[341739227,1731169838605,-166.91,0.00030126,3]
[341739228,1731169838616,-500.73,0.00030126,3]
[341739229,1731169838627,-1322.49,0.00030126,10]
[341739230,1731169838636,-221.0,0.00030135,2]
[341739231,1731169838646,-638.64855305,0.00030135,2]
[341739232,1731169838657,-500.0,0.00030135,2]
[341739233,1731169838665,-500.0,0.00030135,2]
[341739234,1731169838675,-500.0,0.00030135,2]
[341739235,1731169838684,-500.0,0.00030135,2]
[341739236,1731169838693,-585.95259663,0.00030135,2]
[341739237,1731169838702,-184.58154836,0.00030135,2]
[341739238,1731169838711,-500.0,0.00030135,2]
[341739239,1731169838722,-500.0,0.00030135,2]
[341739240,1731169838731,-500.0,0.00030135,2]
[341739241,1731169838742,-500.0,0.00030135,2]
[341739242,1731169838751,-500.0,0.00030135,2]
[341739243,1731169838760,-500.0,0.00030135,2]
[341739244,1731169838769,-500.0,0.00030135,2]
[341739245,1731169838778,-500.0,0.00030135,2]
[341739246,1731169838787,-500.0,0.00030135,2]
[341739247,1731169838796,-155.11485913,0.00030135,2]
[341739248,1731169838805,-500.0,0.00030135,2]
[341739249,1731169838814,-500.0,0.00030135,2]
[341739250,1731169838825,-308.0795459,0.00030136,7]
[341739251,1731169838834,-195.35287108,0.00030136,25]
[341739252,1731169838844,-500.0,0.00030136,2]
[341739253,1731169838853,-500.0,0.00030136,2]
[341739254,1731169838864,-502.71812989,0.00030136,2]
[341739255,1731169838873,-501.29667254,0.00030136,2]
[341739256,1731169838883,-500.0,0.00030136,2]
[341739257,1731169838892,-500.0,0.00030136,2]
[341739258,1731169838901,-500.0,0.00030136,2]
[341739259,1731169838911,-500.0,0.00030136,2]
[341739260,1731169838920,-504.063634,0.00030136,2]
[341739261,1731169838929,-622.63611447,0.00030136,2]
[341739262,1731169838938,-500.0,0.00030136,2]
[341739263,1731169838951,-500.0,0.00030136,2]
[341739264,1731169838960,-503.27412756,0.00030136,2]
[341739265,1731169838970,-500.0,0.00030136,2]
[341739266,1731169838979,-500.0,0.00030136,2]
[341739267,1731169838988,-500.0,0.00030136,2]
[341739268,1731169838998,-500.0,0.00030136,2]
[341739269,1731169839007,-500.0,0.00030136,2]
[341739270,1731169839017,-500.0,0.00030136,2]
[341739271,1731169839026,-198.881,0.00030136,25]
[341739272,1731169839035,-255.86712368,0.00030136,2]
[341739273,1731169839044,-500.0,0.00030136,2]
[341739274,1731169839054,-566.73612131,0.00030136,2]
[341739275,1731169839063,-500.0,0.00030136,2]
[341739276,1731169839073,-500.0,0.00030136,2]
[341739277,1731169839083,-500.0,0.00030136,2]
[341739278,1731169839092,-500.0,0.00030136,2]
[341739279,1731169839102,-160.31888143,0.00030136,2]
[341739280,1731169839111,-500.0,0.00030136,2]
[341739281,1731169839120,-500.0,0.00030136,2]
[341739282,1731169839130,-500.0,0.00030136,2]
[341739283,1731169839139,-500.0,0.00030136,2]
[341739284,1731169839148,-500.0,0.00030136,2]
[341739285,1731169839157,-500.0,0.00030136,2]
[341739286,1731169839166,-500.0,0.00030136,2]
[341739287,1731169839175,-417.35362401,0.00030136,2]
[341739288,1731169839184,-500.0,0.00030136,2]
[341739289,1731169839193,-500.0,0.00030136,2]
[341739290,1731169839202,-500.0,0.00030136,2]
[341739291,1731169839211,-500.0,0.00030136,2]
[341739292,1731169839220,-500.0,0.00030136,2]
[341739293,1731169839229,-500.0,0.00030136,2]
[341739294,1731169839239,-500.0,0.00030136,2]
[341739295,1731169839247,-500.0,0.00030136,2]
[341739296,1731169839256,-500.0,0.00030136,2]
[341739297,1731169839265,-500.0,0.00030136,2]
[341739298,1731169839274,-500.0,0.00030136,2]
[341739299,1731169839283,-500.0,0.00030136,2]
[341739300,1731169839292,-500.0,0.00030136,2]
[341739301,1731169839302,-500.0,0.00030136,2]
[341739302,1731169839311,-500.0,0.00030136,2]
[341739303,1731169839320,-500.0,0.00030136,2]
[341739304,1731169839329,-500.0,0.00030136,2]
[341739305,1731169839338,-500.0,0.00030136,2]
[341739306,1731169839347,-500.0,0.00030136,2]
[341739307,1731169839357,-520.08,0.00030136,2]
[341739308,1731169839366,-500.0,0.00030136,2]
[341739309,1731169839375,-500.0,0.00030136,2]
[341739310,1731169839384,-500.0,0.00030136,2]
[341739311,1731169839393,-500.0,0.00030136,2]
[341739312,1731169839403,-500.0,0.00030136,2]
[341739313,1731169839411,-500.0,0.00030136,2]
[341739314,1731169839424,-500.0,0.00030136,2]
[341739315,1731169839436,-500.0,0.00030136,2]
[341739316,1731169839447,-500.0,0.00030136,2]
[341739317,1731169839458,-500.0,0.00030136,2]
[341739318,1731169839469,-500.0,0.00030136,2]
[341739319,1731169839580,-500.0,0.00030136,2]
[341739320,1731169839590,-500.0,0.00030136,2]
[341739321,1731169839599,-547.80297096,0.00030136,2]
[341739322,1731169839608,-500.0,0.00030136,2]
[341739323,1731169839619,-166.20039571,0.00030136,2]
[341739324,1731169839628,-500.0,0.00030136,2]
[341739325,1731169839637,-500.0,0.00030136,2]
[341739326,1731169839647,-503.10449362,0.00030136,2]
[341739327,1731169839657,-500.0,0.00030136,2]
[341739328,1731169839666,-500.0,0.00030136,2]
[341739329,1731169839675,-500.0,0.00030136,2]
[341739330,1731169839684,-500.0,0.00030136,2]
[341739331,1731169839693,-500.0,0.00030136,2]
[341739332,1731169839703,-500.0,0.00030136,2]
[341739333,1731169839712,-500.0,0.00030136,2]
[341739334,1731169839723,-500.0,0.00030136,2]
[341739335,1731169839732,-500.0,0.00030136,2]
[341739336,1731169839741,-500.0,0.00030136,2]
[341739337,1731169839750,-538.62478736,0.00030136,2]
[341739338,1731169839760,-500.0,0.00030136,2]
[341739339,1731169839769,-500.0,0.00030136,2]
[341739340,1731169839779,-500.0,0.00030136,2]
[341739341,1731169839789,-500.0,0.00030136,2]
[341739342,1731169839798,-500.0,0.00030136,2]
[341739344,1731169839807,-581.16520559,0.00030136,2]
[341739345,1731169839816,-500.0,0.00030136,2]
[341739347,1731169839827,-500.0,0.00030136,2]
[341739348,1731169839837,-500.0,0.00030136,2]
[341739349,1731169839846,-566.83150239,0.00030136,2]
[341739350,1731169839855,-500.0,0.00030136,2]
[341739351,1731169839864,-434.26074029,0.00030136,2]
[341739353,1731169839873,-527.79531851,0.00030136,2]
[341739355,1731169839882,-500.0,0.00030136,2]
[341739356,1731169839891,-500.0,0.00030136,2]
[341739357,1731169839901,-500.0,0.00030136,2]
[341739358,1731169839910,-500.0,0.00030136,2]
[341739359,1731169839919,-500.0,0.00030136,2]
[341739360,1731169839928,-500.0,0.00030136,2]
[341739361,1731169839937,-500.0,0.00030136,2]
[341739362,1731169839947,-500.0,0.00030136,2]
[341739363,1731169839956,-500.0,0.00030136,2]
[341739364,1731169839965,-500.0,0.00030136,2]
[341739365,1731169839974,-500.0,0.00030136,2]
[341739366,1731169839983,-500.0,0.00030136,2]
[341739367,1731169839991,-559.20774295,0.00030136,2]
[341739368,1731169840001,-500.0,0.00030136,2]
[341739369,1731169840010,-500.0,0.00030136,2]
[341739370,1731169840019,-500.0,0.00030136,2]
[341739371,1731169840029,-500.0,0.00030136,2]
[341739373,1731169840038,-499.56104134,0.00030136,2]
[341739374,1731169840047,-500.0,0.00030136,2]
[341739375,1731169840056,-500.0,0.00030136,2]
[341739376,1731169840066,-500.0,0.00030136,2]
[341739377,1731169840078,-500.0,0.00030136,2]
[341739378,1731169840087,-500.0,0.00030136,2]
[341739379,1731169840096,-500.0,0.00030136,2]
[341739380,1731169840106,-500.0,0.00030136,2]
[341739381,1731169840115,-519.49,0.00030136,2]
[341739382,1731169840124,-500.0,0.00030136,2]
[341739383,1731169840135,-500.0,0.00030136,2]
[341739384,1731169840144,-500.0,0.00030136,2]
[341739385,1731169840154,-500.0,0.00030136,2]
[341739386,1731169840164,-500.0,0.00030136,2]
[341739387,1731169840174,-500.0,0.00030136,2]
[341739388,1731169840184,-508.89288883,0.00030136,2]
[341739389,1731169840194,-500.0,0.00030136,2]
[341739390,1731169840204,-500.0,0.00030136,2]
[341739391,1731169840214,-538.61316371,0.00030136,2]
[341739392,1731169840225,-500.0,0.00030136,2]
[341739393,1731169840235,-500.0,0.00030136,2]
[341739394,1731169840244,-500.0,0.00030136,2]
[341739395,1731169840253,-500.0,0.00030136,2]
[341739396,1731169840263,-500.0,0.00030136,2]
[341739397,1731169840271,-500.0,0.00030136,2]
[341739398,1731169840282,-500.0,0.00030136,2]
[341739399,1731169840292,-500.0,0.00030136,2]
[341739400,1731169840305,-501.24857838,0.00030136,2]
[341739401,1731169840317,-500.0,0.00030136,2]
[341739402,1731169840330,-500.0,0.00030136,2]
[341739403,1731169840339,-500.0,0.00030136,2]
[341739404,1731169840348,-500.0,0.00030136,2]
[341739405,1731169840358,-500.0,0.00030136,2]
[341739406,1731169840367,-500.0,0.00030136,2]
[341739407,1731169840376,-500.0,0.00030136,2]
[341739408,1731169840385,-568.1040556,0.00030136,2]
[341739409,1731169840394,-500.0,0.00030136,2]
[341739410,1731169840403,-500.0,0.00030136,2]
[341739411,1731169840411,-500.0,0.00030136,2]
[341739412,1731169840420,-500.0,0.00030136,2]
[341739413,1731169840429,-500.0,0.00030136,2]
[341739414,1731169840438,-500.0,0.00030136,2]
[341739415,1731169840447,-500.0,0.00030136,2]
[341739416,1731169840456,-1310.12,0.00030136,2]
[341739417,1731169840465,-500.0,0.00030136,2]
[341739418,1731169840475,-500.0,0.00030136,2]
[341739419,1731169840484,-500.0,0.00030136,2]
[341739420,1731169840494,-500.0,0.00030136,2]
[341739421,1731169840503,-500.0,0.00030136,2]
[341739422,1731169840513,-598.77983415,0.00030136,2]
[341739423,1731169840523,-500.0,0.00030136,2]
[341739424,1731169840532,-500.0,0.00030136,2]
[341739425,1731169840541,-500.0,0.00030136,2]
[341739426,1731169840550,-500.0,0.00030136,2]
[341739427,1731169840559,-500.0,0.00030136,2]
[341739428,1731169840569,-500.0,0.00030136,2]
[341739429,1731169840580,-500.0,0.00030136,2]
[341739430,1731169840590,-500.0,0.00030136,2]
[341739431,1731169840599,-1311.04,0.00030136,2]
[341739432,1731169840608,-1311.04,0.00030136,2]
[341739433,1731169840619,-1311.04,0.00030136,2]
[341739434,1731169840628,-239.30540907,0.00030136,2]
[341739435,1731169840637,-500.0,0.00030136,2]
[341739436,1731169840646,-500.0,0.00030136,2]
[341739437,1731169840657,-500.0,0.00030136,2]
[341739438,1731169840667,-500.0,0.00030136,2]
[341739439,1731169840676,-500.0,0.00030136,2]
[341739440,1731169840685,-500.0,0.00030136,2]
[341739441,1731169840694,-500.0,0.00030136,2]
[341739442,1731169840704,-2336.0,0.00030136,2]
[341739443,1731169840713,-605.54379315,0.00030136,2]
[341739444,1731169840722,-502.22267436,0.00030136,2]
[341739445,1731169840731,-603.10183963,0.00030136,2]
[341739446,1731169840740,-183.44,0.00030136,2]
[341739447,1731169840749,-500.0,0.00030136,2]
[341739448,1731169840758,-500.0,0.00030136,2]
[341739449,1731169840767,-501.41449765,0.00030136,2]
[341739450,1731169840777,-528.63295631,0.00030136,2]
[341739451,1731169840786,-500.0,0.00030136,2]
[341739452,1731169840795,-464.28120767,0.00030136,2]
[341739453,1731169840804,-500.0,0.00030136,2]
[341739454,1731169840814,-500.0,0.00030136,2]
[341739455,1731169840825,-500.0,0.00030136,2]
[341739456,1731169840834,-500.0,0.00030136,2]
[341739457,1731169840843,-500.0,0.00030136,2]
[341739458,1731169840852,-500.0,0.00030136,2]
[341739459,1731169840861,-500.0,0.00030136,2]
[341739460,1731169840870,-500.0,0.00030136,2]
[341739461,1731169840879,-530.46,0.00030136,2]
[341739462,1731169840889,-500.0,0.00030136,2]
[341739463,1731169840898,-551.54763015,0.00030136,2]
[341739464,1731169840906,-500.0,0.00030136,2]
[341739465,1731169840915,-500.0,0.00030136,2]
[341739466,1731169840925,-500.0,0.00030136,2]
[341739467,1731169840935,-500.0,0.00030136,2]
[341739468,1731169840944,-500.0,0.00030136,2]
[341739469,1731169840953,-500.0,0.00030136,2]
[341739470,1731169840962,-500.0,0.00030136,2]
[341739471,1731169840971,-500.0,0.00030136,2]
[341739472,1731169840981,-500.0,0.00030136,2]
[341739473,1731169840990,-500.0,0.00030136,2]
[341739474,1731169840999,-500.0,0.00030136,2]
[341739475,1731169841009,-500.0,0.00030136,2]
[341739476,1731169841018,-581.61,0.00030136,2]
[341739477,1731169841028,-500.0,0.00030136,2]
[341739478,1731169841038,-265.49624969,0.00030137,2]
[341739479,1731169841047,-158.82636868,0.00030167,2]
[341739480,1731169841056,-1311.04,0.00030409,2]
[341739481,1731169841065,-1311.04,0.00030409,2]
[341739482,1731169841075,-4567.07,0.00030409,120]
[341739483,1731169841085,-500.0,0.0003041,2]
[341739484,1731169841094,-500.0,0.0003041,2]
[341739485,1731169841103,-500.0,0.0003041,2]
[341739486,1731169841113,-500.0,0.0003041,2]
[341739487,1731169841122,-500.0,0.0003041,2]
[341739488,1731169841131,-500.0,0.0003041,2]
[341739489,1731169841140,-500.0,0.0003041,2]
[341739490,1731169841151,-500.0,0.0003041,2]
[341739491,1731169841160,-529.01742182,0.0003041,2]
[341739492,1731169841169,-500.0,0.0003041,2]
[341739493,1731169841179,-500.0,0.0003041,2]
[341739494,1731169841187,-500.0,0.0003041,2]
[341739495,1731169841197,-500.0,0.0003041,2]
[341739496,1731169841206,-518.71,0.0003041,2]
[341739497,1731169841214,-500.0,0.0003041,2]
[341739498,1731169841224,-500.0,0.0003041,2]
[341739499,1731169841233,-500.0,0.0003041,2]
[341739500,1731169841242,-500.0,0.0003041,2]
[341739501,1731169841251,-500.0,0.0003041,2]
[341739502,1731169841260,-500.0,0.0003041,2]
[341739503,1731169841269,-551.63207081,0.0003041,2]
[341739504,1731169841278,-500.0,0.0003041,2]
[341739505,1731169841287,-500.0,0.0003041,2]
[341739506,1731169841296,-500.0,0.0003041,2]
[341739507,1731169841305,-500.0,0.0003041,2]
[341739508,1731169841314,-500.0,0.0003041,2]
[341739509,1731169841324,-500.0,0.0003041,2]
[341739510,1731169841333,-500.0,0.0003041,2]
[341739511,1731169841342,-500.0,0.0003041,2]
[341739512,1731169841351,-500.0,0.0003041,2]
[341739513,1731169841360,-500.0,0.0003041,2]
[341739514,1731169841369,-500.0,0.0003041,2]
[341739515,1731169841378,-500.0,0.0003041,2]
[341739516,1731169841387,-600.78046908,0.0003041,2]
[341739517,1731169841396,-508.22924614,0.0003041,2]
[341739518,1731169841405,-500.0,0.0003041,2]
[341739519,1731169841414,-500.0,0.0003041,2]
[341739520,1731169841423,-200.55,0.0003041,2]
[341739521,1731169841432,-500.0,0.0003041,2]
[341739522,1731169841441,-500.0,0.0003041,2]
[341739523,1731169841451,-500.0,0.0003041,2]
[341739524,1731169841460,-500.0,0.0003041,2]
[341739525,1731169841469,-500.0,0.0003041,2]
[341739526,1731169841478,-500.0,0.0003041,2]
[341739527,1731169841487,-579.28,0.0003041,2]
[341739528,1731169841496,-591.62570238,0.0003041,2]
[341739529,1731169841505,-500.0,0.0003041,2]
[341739530,1731169841514,-500.0,0.0003041,2]
[341739531,1731169841523,-500.0,0.0003041,2]
[341739532,1731169841533,-500.0,0.0003041,2]
[341739533,1731169841543,-500.0,0.0003041,2]
[341739534,1731169841552,-500.0,0.0003041,2]
[341739535,1731169841561,-500.0,0.0003041,2]
[341739536,1731169841572,-516.7,0.0003041,2]
[341739537,1731169841586,-500.0,0.0003041,2]
[341739538,1731169841596,-500.0,0.0003041,2]
[341739539,1731169841605,-500.0,0.0003041,2]
[341739540,1731169841615,-500.0,0.0003041,2]